Cogmind - Beta 15 @@@ ROGUE MODE // 2025.07.12 @ 16:10:06 Player: Flufflewump Result: Self-destructed Performance ------------- Evolutions (2) 1000 Regions Visited (3) 600 Robots Destroyed (20) 100 Value Destroyed (565) 565 Prototype IDs (2) 40 Alien Tech Used (0) 0 Bonus (0) 0 TOTAL SCORE: 2305 Bonus ------- None Cogmind --------- Core Integrity 282/550 Matter 174/300 Energy 100/100 System Corruption 0% Temperature Cool (0) Movement Core (100) Ox1 Location -8/Materials Parts ------- > --- POWER (2) -------- (None) > --- PROPULSION (3) --- (None) > --- UTILITY (4) ------ Small Storage Unit > --- WEAPON (2) ------- (None) > --- INVENTORY (8) ---- Heat Sink Improved Heat Sink Trap Scanner Sensor Array Seismic Detector Datajack Peak State ------------ > --- POWER ------------ Ion Engine Light Nuclear Core > --- PROPULSION ------- Improved Hover Unit Improved Hover Unit > --- UTILITY ---------- Improved Heat Sink Small Storage Unit Weight Redist. System Sensor Array > --- WEAPON ----------- Small Laser Light Assault Rifle > --- INVENTORY -------- Heat Sink Seismic Detector Light Assault Rifle Grenade Launcher Datajack [Rating: 17] Favorites ----------- Power Light Nuclear Core Engine Light Ion Engine Power Core Light Nuclear Core Propulsion Improved Hover Unit Leg Aluminum Leg Hover Unit Improved Hover Unit Utility Small Storage Unit Device Sensor Array Storage Small Storage Unit Weapon Light Assault Rifle Energy Gun Small Laser Ballistic Gun Light Assault Rifle Launcher Grenade Launcher Build | -11 -10 -9 -8 ------- Run | Yrd Mat Mat Mat Slots Evolved 4 | . . 2 2 Power 1 | . . . 1 Propulsion 1 | . . 1 . Utility 2 | . . 1 1 Weapon . | . . . . Parts Attached 18 | . 5 10 3 Power 2 | . 1 . 1 Engine 1 | . . . 1 Core 1 | . 1 . . Reactor . | . . . . Propulsion 5 | . 3 2 . Treads . | . . . . Leg 1 | . 1 . . Wheel . | . . . . Hover 4 | . 2 2 . Flight . | . . . . Utility 6 | . . 4 2 Device 6 | . . 4 2 Storage . | . . . . Processor . | . . . . Hackware . | . . . . Protection . | . . . . Artifact . | . . . . Weapon 5 | . 1 4 . Energy Gun 1 | . 1 . . Energy Cannon . | . . . . Ballistic Gun 3 | . . 3 . Ballistic Cannon . | . . . . Launcher 1 | . . 1 . Special Weapon . | . . . . Impact Weapon . | . . . . Slashing Weapon . | . . . . Piercing Weapon . | . . . . Special Melee Weapon . | . . . . Unidentified Prototypes . | . . . . Parts Lost 11 | . . 2 9 Power 2 | . . . 2 Propulsion 4 | . . 2 2 Utility 1 | . . . 1 Weapon 4 | . . . 4 Highest Loss Streak 9 | . . 1 9 To Critical Strikes . | . . . . Average Backups 6 | 5 6 6 5 Power . | 1 1 1 . Propulsion . | 3 1 . . Utility 1 | . . 1 2 Weapon 2 | 1 2 3 1 Tool/Special . | . . . . Unused Backups 8 | . 7 . 1 Power 2 | . 2 . . Propulsion 3 | . 3 . . Utility 1 | . 1 . . Weapon 1 | . 1 . . Tool/Special 1 | . . . 1 Average Slot Usage (%) 81 | . 84 82 74 Engine 5 | . 11 . 8 Core 7 | . 2 11 7 Leg 4 | . 13 . . Hover 19 | . 14 24 14 Device 10 | . . 13 18 Storage 11 | . 14 11 9 Energy Gun 5 | . 10 1 6 Ballistic Gun 15 | . 17 17 9 Launcher 1 | . . 3 . Peak Build Rating 17 | 6 11 14 17 Average Rating 11 | 6 7 12 13 On Entrance 9 | 6 6 10 14 Naked Turns . | . . . . Heaviest Build 22 | 10 12 18 22 Greatest Support 21 | 20 20 21 20 Greatest Overweight (x) 3 | . 3 1 1 Average Overweight (x) . | . . . . Largest Inventory Capacity 8 | 8 8 8 8 Average Capacity 8 | 8 8 8 8 Most Carried 8 | 5 8 7 8 Average Carried 6 | 4 6 6 5 Final Capacity 8 | 8 8 8 8 Final Carried 7 | 3 7 7 6 Class Distribution -------------------- 100% | Mutant Dominant Class ---------------- Mutant | -10/Materials Mutant | -9/Materials Mutant | -8/Materials Resources | -11 -10 -9 -8 ----------- Run | Yrd Mat Mat Mat Matter Collected 553 | 200 86 232 35 Remotely . | . . . . Salvage Created 603 | . 254 314 35 Parts 38 | . 17 21 . Haulers Intercepted 1 | . 1 . . Recyclers Shooed . | . . . . Parts Field Recycled . | . . . . Retrieved Matter . | . . . . Parts Self-Destructed . | . . . . Prevented . | . . . . Kills | -11 -10 -9 -8 ------- Run | Yrd Mat Mat Mat Combat Hostiles Destroyed 18 | . 7 9 2 Guns 17 | . 7 9 1 AOE 1 | . . . 1 Classes Destroyed 6 | . 3 2 1 Hauler 1 | . 1 . . Watcher 1 | . . 1 . Swarmer 7 | . 3 4 . Grunt 6 | . 4 2 . Duelist 1 | . . . 1 Sentry 4 | . . 3 1 Best Kill Streak 4 | . 3 4 2 Combat Bots Only 4 | . 3 4 2 Max Kills in Single Turn 1 | . 1 1 1 Gunslinging . | . . . . Exploded 1 | . . . 1 Melee . | . . . . Uniques/NPCs Destroyed . | . . . . Combat | -11 -10 -9 -8 -------- Run | Yrd Mat Mat Mat Hostile Shots Fired 141 | . 42 39 60 Missed 54 | . 20 18 16 Hits 87 | . 22 21 44 Projectile 87 | . 22 21 44 Critical Strikes 2 | . . 1 1 Damage Taken 1289 | . 273 246 770 Core 365 | . 90 7 268 Absorbed by Shields . | . . . . Core Remaining (%) 87 | 100 64 98 . Volleys Fired 80 | . 28 26 26 Largest 2 | . 2 2 2 Hottest 63 | . 60 63 60 Shots Fired 139 | . 55 43 41 Gun 130 | . 55 42 33 Cannon . | . . . . Launcher 9 | . . 1 8 Special . | . . . . Kinetic 99 | . 36 37 26 Thermal 31 | . 19 5 7 Explosive 9 | . . 1 8 Electromagnetic . | . . . . Robot Hit Streak 10 | . 10 10 5 Robot Miss Streak 4 | . 4 3 4 Penetration Max . | . . . . Secondary Targets 5 | . 2 3 . Max Gunslinging Chain 1 | . 1 1 . Shots Hit Robots 81 | . 37 30 14 Core Hits 43 | . 16 15 12 Critical Kills 1 | . . 1 . Critical Parts Destroyed . | . . . . Critical Strikes 1 | . . 1 . Destroy 1 | . . 1 . Melee Attacks . | . . . . Impact . | . . . . Slashing . | . . . . Piercing . | . . . . Sneak Attacks . | . . . . Combat Hostiles . | . . . . Follow-up Attacks . | . . . . Damage Inflicted 1211 | . 347 384 480 Guns 869 | . 347 384 138 Cannons . | . . . . Explosions 342 | . . . 342 Melee . | . . . . Ramming . | . . . . Kinetic 662 | . 207 339 116 Thermal 207 | . 140 45 22 Explosive 342 | . . . 342 Electromagnetic . | . . . . Impact . | . . . . Slashing . | . . . . Piercing . | . . . . Highest Corruption . | . . . . Average Corruption . | . . . . Corruption Purged . | . . . . Corruption Blocked . | . . . . Overload Shots . | . . . . Overflow Damage . | . . . . Projectiles . | . . . . Explosions . | . . . . Melee . | . . . . Knockbacks . | . . . . Impact . | . . . . Kinetic . | . . . . Secondary . | . . . . Self-Inflicted Damage 97 | . . . 97 Shots 5 | . . . 5 Rammed . | . . . . Targets Rammed . | . . . . Kicked . | . . . . Crushed . | . . . . Highest Temperature 183 | . 183 76 39 Average Temperature 39 | . 60 24 16 Received Heat Transfer 612 | . 123 93 396 Siege Activations . | . . . . Martial Activations . | . . . . Shielding Activations . | . . . . Robots Disrupted . | . . . . Combat Hostiles . | . . . . Robots Corrupted . | . . . . Combat Hostiles . | . . . . Parts Fried . | . . . . Impact Corruptions . | . . . . Robots Melted . | . . . . Combat Hostiles . | . . . . Parts Melted 1 | . . 1 . Heat Transferred 475 | . 325 100 50 Parts Sabotaged . | . . . . Parts Stolen . | . . . . Parts Stripped . | . . . . Power Chain Reactions . | . . . . Alert | -11 -10 -9 -8 ------- Run | Yrd Mat Mat Mat Maximum Alert Level . | . . . . Low Security (%) 100 | 100 100 100 100 Level 1 . | . . . . Level 2 . | . . . . Level 3 . | . . . . Level 4 . | . . . . Level 5 . | . . . . High Security . | . . . . Max Security . | . . . . Peak Influence 123 | . 90 123 81 Initial 24 | . . 24 18 Average 41 | . 30 62 12 Influence Increases 633 | . 191 311 131 Destroy 0b10 Robot/C 360 | . 140 180 40 Destroy 0b10 Robot/NC 10 | . 5 5 . Destroy Leader 104 | . 32 52 20 Successful Hack 20 | . 14 6 . Disable Machine 30 | . . 15 15 Destroy Structure 34 | . . 8 26 Partial Spotted 45 | . . 15 30 Lose Combat Pursuer 30 | . . 30 . Influence Decreases 633 | . 134 322 177 Entered New Map 61 | . . 33 28 Time Decay 461 | . 134 259 68 Lost Part 101 | . . 20 81 Lost Ally 10 | . . 10 . Squads Dispatched 2 | . 1 . 1 Investigation . | . . . . Extermination . | . . . . Reinforcement 2 | . 1 . 1 Assault . | . . . . Garrison . | . . . . Intercept . | . . . . Searches Triggered . | . . . . Construction Impeded 1 | . . . 1 Haulers Reinforced . | . . . . Active Scanning Responses . | . . . . Cargo Convoy Interrupts . | . . . . Stealth | -11 -10 -9 -8 --------- Run | Yrd Mat Mat Mat Distress Signals 2 | . . 2 . Communications Jammed . | . . . . Distress Signals . | . . . . Times Spotted 29 | . 10 15 4 Peak Tracking Total 4 | . 3 4 3 Tactical Retreats 2 | . . 2 . Traps | -11 -10 -9 -8 ------- Run | Yrd Mat Mat Mat Traps Triggered 1 | . 1 . . Indirectly . | . . . . Trap Hack Attempts . | . . . . Triggered . | . . . . Disarmed . | . . . . Reprogrammed . | . . . . Reused . | . . . . Traps Extracted . | . . . . Installed . | . . . . Triggered . | . . . . Machines | -11 -10 -9 -8 ---------- Run | Yrd Mat Mat Mat Machines Disabled 2 | . . 1 1 Max in Single Turn 1 | . . 1 1 Machines Repaired . | . . . . Machines Dismantled . | . . . . Machines Sabotaged . | . . . . Overloaded Fab Kills . | . . . . Hacking | -11 -10 -9 -8 --------- Run | Yrd Mat Mat Mat Machines Accessed 6 | . 2 3 1 Terminals 5 | . 2 2 1 Fabricators . | . . . . Repair Stations . | . . . . Recycling Units . | . . . . Scanalyzers 1 | . . 1 . Garrison Access . | . . . . Total Hacks 18 | . 8 8 2 Successful 14 | . 7 7 . Failed 4 | . 1 1 2 Catastrophic 1 | . 1 . . Database Lockouts . | . . . . Manual 8 | . 5 3 . Terminals 16 | . 8 6 2 Fabricators . | . . . . Repair Stations . | . . . . Recycling Units . | . . . . Scanalyzers 2 | . . 2 . Garrison Access . | . . . . Terminal Hacks 11 | . 7 4 . Prototype ID Bank 1 | . 1 . . Branch Access Points 1 | . 1 . . Emergency Access Points 1 | . 1 . . Locate Traps 4 | . 2 2 . Zone Layout 4 | . 2 2 . Fabricator Hacks . | . . . . Repair Station Hacks . | . . . . Recycling Unit Hacks . | . . . . Scanalyzer 2 | . . 2 . Insert Component 1 | . . 1 . Analyze 1 | . . 1 . Garrison Access Hacks . | . . . . Unauthorized Hacks 1 | . . 1 . Terminals 1 | . . 1 . Assimilate 1 | . . 1 . Fabricators . | . . . . Repair Stations . | . . . . Recycling Units . | . . . . Scanalyzers . | . . . . Garrison Access . | . . . . Data Cores Recovered . | . . . . Used . | . . . . Hacking Detections 5 | . 2 2 1 Full Trace Events . | . . . . Feedback Events . | . . . . Feedback Blocked . | . . . . Robot Schematics Acquired . | . . . . Robots Built . | . . . . Authchips . | . . . . Time . | . . . . Total Robot Build Rating . | . . . . Part Schematics Acquired 1 | . . 1 . Parts Built . | . . . . Authchips . | . . . . Time . | . . . . Total Part Build Rating . | . . . . Parts Repaired . | . . . . Time . | . . . . Parts Recycled . | . . . . Recycled Matter . | . . . . Retrieved Matter . | . . . . Retrieved Components . | . . . . Parts Scanalyzed 1 | . . 1 . Part Schematics Acquired 1 | . . 1 . Parts Damaged . | . . . . Bothacking | -11 -10 -9 -8 ------------ Run | Yrd Mat Mat Mat Used RIF Installer . | . . . . Robots Hacked . | . . . . Non-combat . | . . . . Combat . | . . . . Robot Hacks Applied . | . . . . Relay Couplers Released . | . . . . Fabnet Peak Effective % . | . . . . Robots Rewired . | . . . . Allies Hacked . | . . . . Hacks Repelled . | . . . . Allies | -11 -10 -9 -8 -------- Run | Yrd Mat Mat Mat Total Allies 1 | . . 1 . Largest Group 1 | . . 1 . Highest-Rated Group 10 | . . 10 . Highest-Rated Ally 10 | . . 10 . Total Orders . | . . . . Ally Attacks . | . . . . Total Damage . | . . . . Kills . | . . . . Allies Corrupted . | . . . . Allies Melted . | . . . . Intel | -11 -10 -9 -8 ------- Run | Yrd Mat Mat Mat Active Infowar (turns) 612 | . . 359 253 Sensors 561 | . . 341 220 Traps 68 | . . . 68 Seismic 18 | . . 18 . Robot Analysis Total . | . . . . Derelict Logs Recovered . | . . . . Drone Launches . | . . . . Drone Recoveries . | . . . . Exploration | -11 -10 -9 -8 ------------- Run | Yrd Mat Mat Mat Turns Passed 1283 | 2 420 581 280 Spaces Moved 854 | 1 318 429 106 Core 3 | . 1 . 2 Treads . | . . . . Legs 129 | 1 128 . . Wheels . | . . . . Hover 722 | . 189 429 104 Flight . | . . . . Fastest Speed 52 | 120 56 52 56 Average Speed 79 | 120 82 81 59 Slowest Speed 200 | 120 200 116 120 Overloaded Moves . | . . . . Propulsion Burnouts . | . . . . Robots Hopped . | . . . . Potential Cave-ins . | . . . . Cave-ins Triggered . | . . . . Exploration Rate (%) 24 | 2 45 39 12 Regions Visited 3 Branch Regions . Pre-discovered Areas . | . . . . Known Exits Taken . | . . . . Unknown Exits Taken 3 | 1 1 1 . Scrap Searched . | . . . . Spaces Dug . | . . . . Terrain Destroyed 40 | . . 8 32 Melee . | . . . . Projectile . | . . . . AOE 40 | . . 8 32 Terrain Rammed . | . . . . Walls Destroyed . | . . . . Machines Disabled . | . . . . Actions | -11 -10 -9 -8 --------- Run | Yrd Mat Mat Mat Total 1339 | 3 429 621 286 Wait 353 | . 65 147 141 Move 851 | . 317 428 106 Hop . | . . . . Pick Up 8 | . 6 1 1 Fast Attach 6 | . 2 3 1 Attach 9 | . . 5 4 Detach 9 | . 2 4 3 Swap 12 | . 3 6 3 Drop 11 | 3 6 1 1 Fire 80 | . 28 26 26 Melee . | . . . . Ram . | . . . . Kick . | . . . . Crush . | . . . . Escape Stasis . | . . . . Rewire . | . . . . Trap . | . . . . Miscellaneous . | . . . . Route ------- -11/Scrapyard -10/Materials (discovered 3 exits: *Mat / Min x2) -9/Materials (discovered 2 exits: *Mat / [*Min]) -8/Materials History --------- Turn | Location | Event 3 | -11/Scrapyard | Discovered new exit (range 0) 3 | -11/Scrapyard | Entered Materials 15 | -10/Materials | Discovered new exit (range 9) 15 | -10/Materials | Identified exit to Mines 135 | -10/Materials | Discovered new exit (range 13) 304 | -10/Materials | Build established: Mutant 423 | -10/Materials | Entered another Materials area 423 | -9/Materials | Evolved 2 slots: Propulsion x1, Utility x1 582 | -9/Materials | Discovered new exit (range 12) 964 | -9/Materials | Discovered new exit (range 6) 1004 | -9/Materials | Entered another Materials area 1004 | -8/Materials | Evolved 2 slots: Power x1, Utility x1 1284 | -8/Materials | Self-destructed Last Messages --------------- 01220_ Y-45 Defender destroyed. 01226_ Acquired 18 matter. 01229_ ALERT: Construction progress impeded, dispatching reinforcements to local area. 01232_ Lgt. Nuclear Core destroyed. 01234_ L-31 Rogue destroyed. 01237_ The unstable cave ceiling collapses. 01239_ Grenade Launcher destroyed. 01249_ Imp. Hover Unit destroyed. 01252_ Acquired 17 matter. 01254_ The unstable cave ceiling collapses. 01259_ Lgt. Assault Rifle destroyed. 01261_ Sml. Laser destroyed. 01269_ Ion Engine destroyed. 01270_ The unstable cave ceiling collapses. 01271_ Destroyed Aluminum Leg. 01271_ Weight Redist. System destroyed. 01274_ The unstable cave ceiling collapses. 01283_ Lgt. Assault Rifle destroyed. 01283_ Critical hit (Burn: +37). Map ----- +----------------------------------------------------+ | ?????????????????????????????????????# #??????? | | ?????????????????????????????????????# #??????? | | ?????????????????????????????????????# #??????? | | ?????????????????????????????????????# ######?? | | ?????????????????????????????######??# [ # # | | ?????????????????????????????# ??# #[ """ # | | ?????????????????????????????# !?# # """ # | | ?????????????????????????????# ?# #= """ # | | ?????????????????????????????# ] # # """ # | | ?????????????????????????????# # # """ # | | ?????????????????????????????# + + # | | ?????????????????????????????# # # = # | | ?????????????????????????????# # # # | | ?????????????????????????????# ?# # ! # | | ?????????????????????????????# ?# # # | | ?????????????????????????????# ??# # "T" # | | ?????????????????????????????######### # # | | ??????????????????????######### + ######## | | ??????????????????????# ] ## """ # #??????? | | ??????????????????????# ## """ # #??????? | | ??????????????????????# "" # """ # #??????? | | ??????????????????????# ##* # #??????? | | ?????????????????????## # # #??????? | | ?????????????????????## ######## #??????? | | ???????????????#### ## # ######### #??????? | | ?????????? g @ u #??????? | | ?????????? g #??????? | | ?????????? #??????? | | ???????????#### # ##### ####+#######??????? | | ??????????????###### ##????# ## #?????????? | | ?????????????????# ##??????# ##= = #?????????? | | ?????????????????###????????# ## #?????????? | | ????????????????????????????# ## [[[#?????????? | | ????????????????????????????# ## [[[#?????????? | | ????????????????????????????# ## [[[#?????????? | | ????????????????????????????? ?########?????????? | | ????????????????????????????? ??????????????????? | | ????????????????????????????? ??????????????????? | | ????????????????????????????? ??????????????????? | | ????????????????????????????? ??????????????????? | | ????????????????????????????? ??????????????????? | | ????????????????????????????? ??????????????????? | | ????????????????????????????????????????????????? | | ????????????????????????????????????????????????? | | ????????????????????????????????????????????????? | | ????????????????????????????????????????????????? | | ????????????????????????????????????????????????? | | ????????????????????????????????????????????????? | | ????????????????????????????????????????????????? | | ????????????????????????????????????????????????? | +----------------------------------------------------+ Best States ------------- Heat Dissipation 38 Energy Generation 19 Energy Capacity 310 Matter Stores 300 Matter Capacity 300 Sight Range 16 Robot Scan Range 14 Terrain Scan Density 10 Additional Mass Support 6 Evasion (%) 55 Item Schematics ----------------- Imp. Hover Unit | -9/Materials | Scanalyzed Robot Schematics ------------------ None Fabricated ------------ Nothing Repaired ---------- Nothing Alien Tech Used ----------------- None Achievements -------------- None Challenges ------------ None Game ------ Seed RestorationPowerChainsword Manual? 0 Play Time 00:18:51 Cumulative 32.5 hours Start 2025.07.12 @ 15:54:05 End 2025.07.12 @ 16:10:06 Sessions 1 Manual Loads 0 Difficulty Rogue Special Mode None Game No. 34 Rogue 34 Adventurer 0 Explorer 0 Win Type - Total 0 Types 0/0/0/0/0/0/0/0/0/0 Lore% 23 Gallery% 31 Achievement% 29 Wizard Run 0 Options --------- Layout 0 ASCII 1 Keyboard 1 Movement Vi Keybinds 1 Fullscreen 1 Font 18/SmallcapsGlow Map View 76x50 Zoom Use 0% Tactical HUD 1 Map Filters NONE Filters NONE Steam 1 RUN: a6df1ea9-f410-4279-9803-a7a3e63d2da6